lending/lending_fUSD_20251124
["ID","MTS","AMOUNT","RATE_DAILY","PERIOD"]
[394794271,1763957432232,-250.0,0.00020495,2]
[394794272,1763957432241,-250.0,0.00024618,2]
[394794273,1763957432250,-38.18094878,0.00026676,2]
[394794274,1763957432262,-247.06905122,0.00026676,2]
[394794275,1763957432271,-285.25,0.00033165,2]
[394794276,1763957432279,-400.0,0.00034914,2]
[394794277,1763957432288,-36.26243892,0.00034914,3]
[394794278,1763957432306,-779.73756108,0.00034914,3]
[394794279,1763957432315,-150.0,0.00034915,7]
[394794280,1763957432324,-150.0,0.00034915,7]
[394794281,1763957432335,-150.0,0.00034915,7]
[394794282,1763957432343,-150.0,0.00034915,7]
[394794283,1763957432352,-150.0,0.00034915,7]
[394794284,1763957432361,-150.0,0.00034915,7]
[394794285,1763957432370,-150.0,0.00034915,7]
[394794286,1763957432379,-1500.0,0.00036304,120]
[394794287,1763957432387,-156.17328587,0.00036586,76]
[394794288,1763957432396,-500.0,0.00036679,5]
[394794289,1763957432405,-1000.0,0.00036686,2]
[394794290,1763957432414,-2751.0,0.00036733,120]
[394794291,1763957432423,-156.17328582,0.00036782,77]
[394794293,1763957432432,-150.0,0.00036786,2]
[394794296,1763957432441,-352.945,0.00036888,7]
[394794297,1763957432450,-161.94,0.0003696,30]
[394794298,1763957432460,-156.17328582,0.00036977,77]
[394794300,1763957432469,-1000.0,0.00037,2]
[394794301,1763957432478,-1000.0,0.00037078,2]
[394794302,1763957432488,-156.17328582,0.00037173,78]
[394794303,1763957432499,-5000.0,0.00037263,2]
[394794304,1763957432508,-177.75,0.00037263,2]
[394794305,1763957432517,-1320.0,0.00037275,2]
[394794306,1763957432530,-3437.0,0.00037275,2]
[394794307,1763957432542,-843.0,0.00037275,2]
[394794308,1763957432551,-1615.853,0.00037275,2]
[394794310,1763957432560,-1256.0,0.00037275,2]
[394794317,1763957432778,-661.708,0.00037275,2]
[394794318,1763957432788,-561.0,0.00037275,2]
[394794319,1763957432798,-6499.0,0.00037275,2]
[394794320,1763957432807,-2660.0,0.00037275,2]
[394794321,1763957432816,-156.17328582,0.00037368,78]
[394794322,1763957432825,-1210.76,0.00037378,2]
[394794323,1763957432834,-156.17328582,0.00037564,78]
[394794324,1763957432843,-150.0,0.00037726,2]
[394794325,1763957432852,-156.17328582,0.00037759,79]
[394794326,1763957432862,-150.47,0.00037808,2]
[394794327,1763957432871,-970.905,0.00037877,49]
[394794328,1763957432880,-235.60513966,0.00037955,2]
[394794329,1763957432889,-814.58318219,0.00037955,2]
[394794330,1763957432899,-156.17328582,0.00037955,79]
[394794331,1763957432909,-215.56046239,0.00038054,15]
[394794332,1763957432918,-313.54928025,0.00038054,15]
[394794333,1763957432927,-500.0,0.00038054,15]
[394794334,1763957432936,-500.0,0.00038054,15]
[394794335,1763957432945,-272.1643762,0.00038054,15]
[394794336,1763957432954,-500.0,0.00038054,15]
[394794337,1763957432964,-500.0,0.00038054,15]
[394794338,1763957432974,-500.0,0.00038054,15]
[394794339,1763957432983,-501.86314705,0.00038054,15]
[394794340,1763957432995,-500.0,0.00038054,15]
[394794341,1763957433006,-269.99002876,0.00038054,15]
[394794342,1763957433015,-500.0,0.00038054,7]
[394794343,1763957433024,-230.31458143,0.00038054,15]
[394794344,1763957433033,-321.49213118,0.00038054,15]
[394794345,1763957433043,-500.0,0.00038054,15]
[394794346,1763957433052,-500.0,0.00038054,2]
[394794347,1763957433061,-500.0,0.00038054,15]
[394794348,1763957433070,-302.01927769,0.00038054,15]
[394794349,1763957433079,-500.0,0.00038054,7]
[394794350,1763957433088,-500.0,0.00038054,2]
[394794351,1763957433097,-500.0,0.00038054,15]
[394794352,1763957433107,-206.79501577,0.00038054,15]
[394794353,1763957433116,-500.0,0.00038054,15]
[394794354,1763957433125,-500.0,0.00038054,2]
[394794355,1763957433135,-442.06960664,0.00038054,7]
[394794356,1763957433144,-500.0,0.00038054,15]
[394794357,1763957433153,-500.0,0.00038054,2]
[394794358,1763957433163,-500.0,0.00038054,15]
[394794359,1763957433172,-500.0,0.00038054,2]
[394794360,1763957433181,-500.0,0.00038054,15]
[394794361,1763957433191,-210.63984908,0.00038054,2]
[394794362,1763957433200,-500.0,0.00038054,15]
[394794363,1763957433209,-500.0,0.00038054,15]
[394794364,1763957433219,-500.0,0.00038054,2]
[394794365,1763957433229,-500.0,0.00038054,15]
[394794366,1763957433238,-381.00267417,0.00038054,15]
[394794367,1763957433247,-500.0,0.00038054,2]
[394794368,1763957433256,-500.0,0.00038054,2]
[394794369,1763957433266,-500.0,0.00038054,15]
[394794370,1763957433275,-500.0,0.00038054,15]
[394794371,1763957433284,-500.0,0.00038054,15]
[394794372,1763957433293,-500.0,0.00038054,15]
[394794373,1763957433302,-500.0,0.00038054,15]
[394794374,1763957433310,-500.0,0.00038054,15]
[394794375,1763957433319,-41169.72391725,0.00038055,2]
[394794376,1763957433338,-1452.16780799,0.00038055,2]
[394794377,1763957433349,-458.42519,0.00038055,2]
[394794378,1763957438387,-1294.87960001,0.00038055,2]
[394794379,1763957438403,-39855.36460672,0.00038055,2]
[394794386,1763957440332,-252.0,0.00037275,2]
[394794387,1763957440341,-30793.32686811,0.00038055,2]
[394794388,1763957440353,-477.6353598,0.00038055,2]
[394794389,1763957440439,-658.54768959,0.00038055,2]
[394794390,1763957440451,-343.13201041,0.00038055,2]
[394794391,1763957440462,-578.41914811,0.00038055,2]
[394794392,1763957440494,-6211.80232765,0.00038055,2]
[394794393,1763957440506,-732.69582939,0.00038055,2]
[394794394,1763957440518,-2932.34298008,0.00038055,2]
[394794395,1763957440603,-1567.52742327,0.00038055,2]
[394794412,1763957444436,-1329.4238531,0.00038055,2]
[394794436,1763958631399,-250.0,0.00027,2]
[394794438,1763958631409,-658.4075,0.00027,2]
[394794444,1763958631450,-365.61166811,0.00027,2]
[394794446,1763958631460,-162.62409024,0.00027,2]
[394794447,1763958631471,-129.99655123,0.00027,2]
[394794448,1763958631482,-400.00344877,0.00027,2]
[394794449,1763958631492,-222.40365,0.00027,2]
[394794450,1763958631501,-376.59290123,0.00027389,2]
[394794451,1763958631513,-823.40709877,0.00027389,2]
[394794452,1763958631523,-237.16893354,0.0002739,2]
[394794453,1763958631534,-360.06500658,0.0002739,2]
[394794454,1763958631543,-300.0,0.00027999,2]
[394794455,1763958631552,-93.47769129,0.00027999,2]
[394794456,1763958631563,-206.52230871,0.00027999,2]
[394794457,1763958631572,-4263.90518318,0.00028,2]
[394794458,1763958631581,-300.0,0.00028698,119]
[394794459,1763958631590,-300.0,0.00028698,119]
[394794460,1763958631599,-300.0,0.00028698,119]
[394794461,1763958631608,-300.0,0.00028698,119]
[394794462,1763958631617,-300.0,0.000297,119]
[394794464,1763958631626,-499.0,0.0003,7]
[394794466,1763958631635,-206.0,0.00032,14]
[394794467,1763958631645,-207.0,0.00033568,30]
[394794468,1763958631655,-166.66,0.00034108,30]
[394794469,1763958631664,-426.67177017,0.00034231,2]
[394794470,1763958631673,-4003.78,0.00034397,2]
[394794471,1763958631683,-1000.0,0.000345,2]
[394794472,1763958631692,-166.66,0.00034827,30]
[394794473,1763958631701,-150.00000001,0.00034915,7]
[394794474,1763958631711,-153.31902391,0.00034915,7]
[394794475,1763958631720,-150.0,0.00034915,7]
[394794476,1763958631729,-150.0,0.00034915,7]
[394794478,1763958631739,-150.0,0.00034915,7]
[394794481,1763958631748,-157.5149362,0.00034915,7]
[394794483,1763958631758,-166.66,0.00035545,30]
[394794486,1763958631767,-758.45,0.00035992,2]
[394794489,1763958631776,-166.66,0.00036263,30]
[394794491,1763958631785,-152.42,0.00036289,2]
[394794493,1763958631794,-200.0,0.00036772,2]
[394794494,1763958631803,-999.0,0.0003686,3]
[394794495,1763958631812,-166.66,0.00036981,30]
[394794496,1763958631821,-200.0,0.00036986,3]
[394794497,1763958631830,-701.61,0.00037041,2]
[394794498,1763958631839,-962.6,0.00037041,2]
[394794499,1763958631847,-701.61,0.00037041,2]
[394794500,1763958631856,-701.61,0.00037041,2]
[394794501,1763958631867,-665.28,0.00037041,2]
[394794502,1763958631881,-1852.42,0.00037067,2]
[394794503,1763958631890,-150.0,0.00037067,2]
[394794504,1763958631899,-150.0,0.00037178,2]
[394794505,1763958631908,-888.0,0.00037223,2]
[394794506,1763958631919,-666.0,0.00037223,2]
[394794507,1763958631928,-444.0,0.00037223,2]
[394794508,1763958631937,-591.2110837,0.00037223,2]
[394794509,1763958631946,-200.0,0.00037223,2]
[394794510,1763958631959,-412.31506307,0.00037244,2]
[394794511,1763958631979,-142.68493693,0.00037244,2]
[394794512,1763958631988,-333.0,0.00037244,2]
[394794513,1763958631998,-250.0,0.00037244,2]
[394794514,1763958632007,-150.0,0.00037378,2]
[394794515,1763958632016,-150.0,0.00037378,2]
[394794516,1763958632025,-300.0,0.00037426,2]
[394794517,1763958632035,-150.0,0.00037578,2]
[394794518,1763958632044,-166.66,0.00037699,30]
[394794519,1763958632053,-3593.79259254,0.00037853,2]
[394794520,1763958632064,-4018.1230556,0.00037853,2]
[394794521,1763958632075,-12416.96510886,0.00037853,2]
[394794522,1763958632086,-931.18899396,0.00037853,2]
[394794525,1763958637461,-4269.68278289,0.00037853,2]
[394794526,1763958637677,-269.42633492,0.00037853,2]
[394794527,1763958637688,-672.58492465,0.00037853,2]
[394794669,1763958639437,-901.60770658,0.00037853,2]
[394794671,1763958639446,-2664.06175668,0.00037853,30]
[394794677,1763958639494,-2335.93824332,0.00037853,30]
[394794679,1763958639503,-1000.0,0.00037853,2]
[394794681,1763958639512,-1786.1885218,0.00037853,2]
[394794683,1763958639523,-713.8114782,0.00037853,2]
[394794685,1763958639533,-218.4177141,0.00037854,16]
[394794687,1763958639542,-842.05997415,0.00037855,2]
[394794689,1763958639551,-367.78080712,0.00037855,15]
[394794691,1763958639560,-731.57539049,0.00037855,12]
[394794693,1763958639571,-207.60091557,0.00037855,12]
[394794695,1763958639580,-232.17223864,0.00037855,2]
[394794697,1763958639589,-1000.0,0.00037876,3]
[394794699,1763958639598,-242.36222788,0.00037897,2]
[394794701,1763958639607,-226.520829,0.00037952,15]
[394794703,1763958639617,-500.0,0.00037952,15]
[394794705,1763958639627,-282.9343289,0.00037952,15]
[394794707,1763958639636,-552.52733653,0.00037952,15]
[394794709,1763958639645,-634.63522771,0.00037952,15]
[394794711,1763958639655,-500.0,0.00037952,15]
[394794713,1763958639665,-500.0,0.00037952,15]
[394794715,1763958639674,-414.67783564,0.00037952,15]
[394794717,1763958639683,-412.29331656,0.00037952,2]
[394794719,1763958639692,-500.0,0.00037952,15]
[394794721,1763958639701,-500.0,0.00037952,15]
[394794723,1763958639711,-500.0,0.00037952,15]
[394794725,1763958639720,-603.465227,0.00037952,15]
[394794727,1763958639729,-500.0,0.00037952,15]
[394794729,1763958639738,-500.0,0.00037952,15]
[394794731,1763958639747,-500.0,0.00037952,15]
[394794733,1763958639756,-500.0,0.00037952,15]
[394794735,1763958639766,-500.0,0.00037952,15]
[394794737,1763958639775,-500.0,0.00037952,15]
[394794739,1763958639784,-500.0,0.00037952,15]
[394794741,1763958639794,-500.0,0.00037952,15]
[394794743,1763958639803,-500.0,0.00037952,15]
[394794745,1763958639811,-500.0,0.00037952,15]
[394794747,1763958639823,-500.0,0.00037952,15]
[394794749,1763958639831,-201.99267501,0.00037952,15]
[394794751,1763958639841,-500.0,0.00037952,15]
[394794753,1763958639850,-500.0,0.00037952,15]
[394794755,1763958639859,-731522.96758362,0.00037953,2]
[394794757,1763958639890,-378.66,0.00037953,2]
[394794758,1763958639902,-21846.05057341,0.00037953,2]
[394794759,1763958639915,-365.648982,0.00037953,2]
[394794760,1763958639967,-551.75042112,0.00037953,2]
[394795085,1763958643200,-333.03755441,0.00037953,2]
[394795094,1763958643269,-4716.86048909,0.00037953,2]
[394795095,1763958643316,-285.02439635,0.00037953,2]
[394795096,1763958643326,-198.33392831,0.00037954,3]
[394795097,1763958643337,-801.66607169,0.00037954,3]
[394795098,1763958643346,-441.7529,0.00037955,2]
[394795099,1763958643355,-776.724,0.00037955,50]
[394795100,1763958643365,-200.0,0.00037973,4]
[394795101,1763958643375,-345.15057782,0.00037973,5]
[394795102,1763958643385,-500.0,0.00037973,2]
[394795103,1763958643394,-500.0,0.00037973,5]
[394795104,1763958643404,-150.0,0.00038044,4]
[394795105,1763958643413,-150.0,0.00038044,4]
[394795106,1763958643422,-150.0,0.00038044,4]
[394795107,1763958643431,-150.0,0.00038044,4]
[394795108,1763958643441,-500.0,0.00038044,4]
[394795109,1763958643450,-150.0,0.00038044,4]
[394795110,1763958643460,-150.0,0.00038044,4]
[394795111,1763958643469,-1109.5,0.00038053,14]
[394795112,1763958643478,-203.80834664,0.00038053,15]
[394795113,1763958643487,-150.0,0.00038053,15]
[394795114,1763958643496,-163.388809,0.00038053,31]
[394795115,1763958643504,-160.026602,0.00038053,31]
[394795116,1763958643513,-153.386583,0.00038053,31]
[394795117,1763958643523,-151.0,0.00038053,31]
[394795118,1763958643532,-151.0,0.00038053,31]
[394795119,1763958643541,-151.0,0.00038053,31]
[394795120,1763958643550,-156.424415,0.00038053,31]
[394795121,1763958643559,-151.0,0.00038053,31]
[394795122,1763958643569,-151.0,0.00038053,31]
[394795123,1763958643578,-151.0,0.00038053,31]
[394795124,1763958643587,-151.0,0.00038053,31]
[394795125,1763958643598,-151.0,0.00038053,31]
[394795126,1763958643607,-151.0,0.00038053,31]
[394795127,1763958643616,-151.0,0.00038053,31]
[394795128,1763958643625,-495.808335,0.00038053,31]
[394795129,1763958643635,-495.808335,0.00038053,31]
[394795130,1763958643644,-495.808335,0.00038053,31]
[394795131,1763958643654,-495.808335,0.00038053,31]
[394795132,1763958643663,-157.597246,0.00038053,31]
[394795133,1763958643672,-219.90951083,0.00038053,15]
[394795134,1763958643681,-162.48677869,0.00038053,15]
[394795135,1763958643690,-276.31754788,0.00038053,15]
[394795136,1763958643699,-500.0,0.00038053,15]
[394795137,1763958643708,-500.0,0.00038053,15]
[394795138,1763958643717,-500.0,0.00038053,15]
[394795139,1763958643727,-500.0,0.00038053,15]
[394795140,1763958643736,-500.0,0.00038053,15]
[394795141,1763958643746,-500.0,0.00038053,15]
[394795142,1763958643755,-500.0,0.00038053,15]
[394795143,1763958643765,-164.149154,0.00038053,31]
[394795144,1763958643774,-500.0,0.00038053,15]
[394795145,1763958643783,-500.0,0.00038053,15]
[394795146,1763958643792,-587.25202429,0.00038053,15]
[394795147,1763958643802,-500.0,0.00038053,15]
[394795148,1763958643812,-500.0,0.00038053,15]
[394795149,1763958643821,-500.0,0.00038053,15]
[394795150,1763958643831,-500.0,0.00038053,15]
[394795151,1763958643840,-184.77103183,0.00038053,15]
[394795152,1763958643849,-500.0,0.00038053,15]
[394795153,1763958643858,-500.0,0.00038053,15]
[394795154,1763958643867,-500.0,0.00038053,15]
[394795155,1763958643878,-500.0,0.00038053,15]
[394795156,1763958643890,-500.0,0.00038053,15]
[394795157,1763958643899,-500.0,0.00038053,15]
[394795158,1763958643909,-500.0,0.00038053,15]
[394795159,1763958643919,-500.0,0.00038053,15]
[394795160,1763958643928,-500.0,0.00038053,15]
[394795161,1763958643937,-500.0,0.00038053,15]
[394795162,1763958643947,-500.0,0.00038053,15]
[394795163,1763958643956,-500.0,0.00038053,15]
[394795164,1763958643966,-500.0,0.00038053,15]
[394795165,1763958643975,-500.0,0.00038053,15]
[394795166,1763958643984,-500.0,0.00038053,15]
[394795167,1763958643993,-500.0,0.00038053,15]
[394795168,1763958644003,-500.0,0.00038053,15]
[394795169,1763958644012,-500.0,0.00038053,15]
[394795170,1763958644021,-500.0,0.00038053,15]
[394795171,1763958644030,-500.0,0.00038053,15]
[394795172,1763958644039,-500.0,0.00038053,15]
[394795173,1763958644048,-500.0,0.00038053,15]
[394795174,1763958644058,-500.0,0.00038053,15]
[394795175,1763958644067,-620.0,0.00038053,15]
[394795185,1763958644245,-500.0,0.00038053,15]
[394795186,1763958644256,-653.62866289,0.00038053,15]
[394795187,1763958644267,-500.0,0.00038053,15]
[394795188,1763958644277,-500.0,0.00038053,15]
[394795189,1763958644287,-500.0,0.00038053,15]
[394795190,1763958644297,-500.0,0.00038053,15]
[394795191,1763958644306,-500.0,0.00038053,15]
[394795192,1763958644316,-151.0,0.00038053,31]
[394795193,1763958644326,-500.0,0.00038053,15]
[394795194,1763958644336,-151.0,0.00038053,31]
[394795195,1763958644345,-818.268855,0.00038053,31]
[394795196,1763958644354,-805.70833794,0.00038053,15]
[394795197,1763958644364,-818.268855,0.00038053,31]
[394795198,1763958644374,-818.268855,0.00038053,31]
[394795199,1763958644384,-818.268855,0.00038053,31]
[394795200,1763958644393,-218.83931656,0.00038053,15]
[394795201,1763958644403,-151.0,0.00038053,31]
[394795202,1763958644412,-151.0,0.00038053,31]
[394795203,1763958644422,-138.84574491,0.00038053,31]
[394795204,1763958644435,-155.22820109,0.00038053,31]
[394795205,1763958644445,-553.64373807,0.00038053,15]
[394795206,1763958644454,-574.12855637,0.00038053,15]
[394795207,1763958644464,-400.15142608,0.00038053,15]
[394795208,1763958644473,-151.0,0.00038053,31]
[394795209,1763958644483,-151.0,0.00038053,31]
[394795210,1763958644492,-6.51942995,0.00038053,31]
[394795221,1763958645565,-144.48057005,0.00038053,31]
[394795222,1763958645575,-151.0,0.00038053,31]
[394795223,1763958645584,-251.27142995,0.00038053,31]
[394795224,1763958645595,-69.36469105,0.00038053,31]
[394795225,1763958645604,-320.636121,0.00038053,31]
[394795226,1763958645614,-320.636121,0.00038053,31]
[394795227,1763958645623,-291.22179328,0.00038053,31]
[394795228,1763958645729,-29.41432772,0.00038053,31]
[394795229,1763958645739,-151.0,0.00038053,31]
[394795230,1763958645749,-166.409161,0.00038053,15]
[394795231,1763958645760,-166.409161,0.00038053,15]
[394795232,1763958645769,-100.85789508,0.00038053,31]
[394795233,1763958645782,-68.79353292,0.00038053,31]
[394795234,1763958645793,-166.409161,0.00038053,15]
[394795235,1763958645803,-166.409161,0.00038053,15]
[394795236,1763958645812,-54.33814508,0.00038053,31]
[394795237,1763958645824,-102.28685492,0.00038053,31]
[394795238,1763958645834,-151.0,0.00038053,31]
[394795239,1763958645844,-447.771315,0.00038053,30]
[394795240,1763958645855,-151.0,0.00038053,31]
[394795241,1763958645865,-68.13398241,0.00038053,30]
[394795242,1763958645886,-379.63733259,0.00038053,30]
[394795243,1763958645895,-151.0,0.00038053,31]
[394795245,1763958645905,-447.771315,0.00038053,30]
[394795247,1763958645916,-447.771315,0.00038053,30]
[394795249,1763958645925,-151.0,0.00038053,31]
[394795250,1763958645934,-151.0,0.00038053,31]
[394795252,1763958645942,-1000.0,0.00038053,3]
[394795254,1763958645952,-1000.0,0.00038053,3]
[394795256,1763958645961,-151.0,0.00038053,31]
[394795258,1763958645971,-308.485535,0.00038053,31]
[394795260,1763958645980,-151.0,0.00038053,31]
[394795262,1763958645989,-308.485535,0.00038053,31]
[394795264,1763958645998,-308.485535,0.00038053,31]
[394795266,1763958646007,-308.485535,0.00038053,31]
[394795268,1763958646016,-267.765502,0.00038053,31]
[394795270,1763958646026,-267.765502,0.00038053,31]
[394795272,1763958646035,-151.0,0.00038053,31]
[394795274,1763958646044,-267.765502,0.00038053,31]
[394795276,1763958646053,-151.0,0.00038053,31]
[394795278,1763958646062,-267.765502,0.00038053,31]
[394795281,1763958646071,-154.401893,0.00038053,31]
[394795283,1763958646080,-162.494772,0.00038053,31]
[394795285,1763958646090,-162.494772,0.00038053,31]
[394795287,1763958646100,-162.494772,0.00038053,31]
[394795289,1763958646108,-151.0,0.00038053,31]
[394795291,1763958646118,-162.515718,0.00038053,31]
[394795293,1763958646127,-162.494772,0.00038053,31]
[394795295,1763958646136,-169.025918,0.00038053,31]
[394795297,1763958646145,-151.0,0.00038053,31]
[394795299,1763958646154,-151.0,0.00038053,31]
[394795300,1763958646164,-160.982358,0.00038053,31]
[394795302,1763958646174,-151.0,0.00038053,31]
[394795304,1763958646183,-151.0,0.00038053,31]
[394795306,1763958646192,-283.394281,0.00038053,31]
[394795308,1763958646201,-151.0,0.00038053,31]
[394795309,1763958646210,-245.908668,0.00038053,31]
[394795310,1763958646219,-151.0,0.00038053,31]
[394795311,1763958646228,-157.103741,0.00038053,31]
[394795312,1763958646237,-155.342384,0.00038053,31]
[394795313,1763958646246,-151.0,0.00038053,31]
[394795314,1763958646254,-151.0,0.00038053,31]
[394795315,1763958646263,-151.0,0.00038053,31]
[394795316,1763958646272,-156.616248,0.00038053,31]
[394795317,1763958646281,-167.757588,0.00038053,31]
[394795318,1763958646291,-156.048053,0.00038053,31]
[394795319,1763958646300,-151.0,0.00038053,31]
[394795320,1763958646309,-151.0,0.00038053,31]
[394795321,1763958646318,-362.452058,0.00038053,31]
[394795322,1763958646328,-362.452058,0.00038053,31]
[394795323,1763958646337,-362.452058,0.00038053,31]
[394795324,1763958646346,-153.518776,0.00038053,31]
[394795325,1763958646355,-362.452058,0.00038053,31]
[394795326,1763958646364,-151.0,0.00038053,31]
[394795327,1763958646373,-230.811507,0.00038053,31]
[394795328,1763958646382,-298.751311,0.00038053,31]
[394795329,1763958646391,-230.811507,0.00038053,31]
[394795331,1763958646401,-298.751311,0.00038053,31]
[394795332,1763958646412,-151.0,0.00038053,31]
[394795333,1763958646422,-151.0,0.00038053,31]
[394795335,1763958646431,-230.811507,0.00038053,31]
[394795336,1763958646440,-298.751311,0.00038053,31]
[394795337,1763958646449,-151.0,0.00038053,31]
[394795338,1763958646458,-151.0,0.00038053,31]
[394795339,1763958646468,-230.811507,0.00038053,31]
[394795340,1763958646477,-298.751311,0.00038053,31]
[394795341,1763958646487,-151.0,0.00038053,31]
[394795342,1763958646496,-163.361868,0.00038053,31]
[394795343,1763958646505,-151.0,0.00038053,31]
[394795344,1763958646514,-151.0,0.00038053,31]
[394795345,1763958646523,-376.064495,0.00038053,31]
[394795346,1763958646532,-1472.4865963,0.00038054,2]
[394795347,1763958646541,-3393.0003564,0.00038054,2]
[394795348,1763958646550,-1280.5361617,0.00038054,2]
[394795349,1763958646559,-500.0,0.00038054,7]
[394795350,1763958646569,-500.0,0.00038054,7]
[394795351,1763958646579,-500.0,0.00038054,7]
[394795352,1763958646588,-500.0,0.00038054,8]
[394795353,1763958646602,-500.0,0.00038054,8]
[394795354,1763958646611,-512.62008311,0.00038054,8]
[394795355,1763958646620,-433.22462806,0.00038054,8]
[394795356,1763958646630,-500.0,0.00038054,2]
[394795357,1763958646638,-500.0,0.00038054,2]
[394795358,1763958646648,-500.0,0.00038054,2]
[394795359,1763958646658,-1000.0,0.00038054,2]
[394795360,1763958646668,-500.0,0.00038054,8]
[394795361,1763958646677,-838.18205338,0.00038055,2]
[394795362,1763958646687,-27480.29673142,0.00038055,2]
[394795363,1763958646696,-188.31022158,0.00038055,2]
[394795364,1763958646706,-1247.0,0.00038055,7]
[394795365,1763958646717,-1247.0,0.00038055,7]
[394795366,1763958646727,-1247.0,0.00038055,7]
[394795367,1763958646737,-848.27353,0.00038055,2]
[394795368,1763958646746,-939.17630606,0.00038056,13]
[394795369,1763958646757,-500.0,0.00038073,5]
[394795370,1763958646767,-502.22759428,0.00038073,5]
[394795371,1763958646780,-500.0,0.00038073,5]
[394795372,1763958646789,-500.55073687,0.00038073,5]
[394795373,1763958646800,-590.67594096,0.00038073,5]
[394795374,1763958646809,-500.0,0.00038073,5]
[394795375,1763958646819,-500.76126021,0.00038073,5]
[394795376,1763958646828,-500.0,0.00038073,5]
[394795377,1763958646837,-501.97640939,0.00038073,2]
[394795378,1763958646846,-151.0,0.00038073,31]
[394795379,1763958646856,-151.0,0.00038073,31]
[394795380,1763958646865,-151.0,0.00038073,31]
[394795381,1763958646877,-151.0,0.00038073,31]
[394795382,1763958646886,-151.0,0.00038073,31]
[394795383,1763958646895,-151.0,0.00038073,31]
[394795384,1763958646904,-151.0,0.00038073,31]
[394795385,1763958646918,-151.0,0.00038073,31]
[394795386,1763958646927,-165.855032,0.00038073,31]
[394795387,1763958646936,-151.0,0.00038073,31]
[394795388,1763958646945,-151.0,0.00038073,31]
[394795389,1763958646955,-151.0,0.00038073,31]
[394795390,1763958646964,-151.0,0.00038073,31]
[394795391,1763958646974,-151.0,0.00038073,31]
[394795392,1763958646983,-151.0,0.00038073,31]
[394795393,1763958646993,-495.808335,0.00038073,31]
[394795394,1763958647004,-495.808335,0.00038073,31]
[394795395,1763958647013,-495.808335,0.00038073,31]
[394795396,1763958647022,-495.808335,0.00038073,31]
[394795397,1763958647032,-151.0,0.00038073,31]
[394795398,1763958647041,-151.0,0.00038073,31]
[394795399,1763958647051,-818.268855,0.00038073,31]
[394795400,1763958647059,-818.268855,0.00038073,31]
[394795401,1763958647069,-818.268855,0.00038073,31]
[394795402,1763958647078,-818.268855,0.00038073,31]
[394795403,1763958647088,-151.0,0.00038073,31]
[394795404,1763958647097,-151.0,0.00038073,31]
[394795405,1763958647107,-151.0,0.00038073,31]
[394795406,1763958647116,-151.0,0.00038073,31]
[394795407,1763958647125,-211.477428,0.00038073,31]
[394795408,1763958647135,-151.0,0.00038073,31]
[394795409,1763958647144,-320.636121,0.00038073,31]
[394795410,1763958647154,-320.636121,0.00038073,31]
[394795411,1763958647165,-320.636121,0.00038073,31]
[394795412,1763958647174,-320.636121,0.00038073,31]
[394795413,1763958647184,-151.0,0.00038073,31]
[394795414,1763958647193,-166.409161,0.00038073,15]
[394795415,1763958647202,-166.409161,0.00038073,15]
[394795416,1763958647215,-166.409161,0.00038073,15]
[394795417,1763958647229,-166.409161,0.00038073,15]
[394795418,1763958647239,-151.0,0.00038073,31]
[394795419,1763958647248,-447.771315,0.00038073,30]